bitfinex-derivatives/quotes_SOLF0:USTF0_20260202
["timestamp","ask_amount","ask_price","bid_price","bid_amount"]
[1770006143257,139.7545,100.29,100.17,30.66799081]
[1770006143558,139.7709,100.27,100.17,30.66799081]
[1770006143754,170.75517422,100.3,100.19,139.881]
[1770006143755,31.02327422,100.3,100.19,139.881]
[1770006143956,139.7289,100.3,100.2,30.66799081]
[1770006144256,547.3026,100.31,100.2,30.66799081]
[1770006144257,538.3207,100.31,100.2,30.66799081]
[1770006144454,398.6,100.31,100.21,30.66799081]
[1770006144661,758.28492963,100.33,100.23,30.66799081]
[1770006144959,1156.84492963,100.33,100.23,30.66799081]
[1770006145262,148.6487,100.35,100.24,30.79262665]
[1770006145461,2.77948636,100.36,100.27,30.79262665]
[1770006145758,2.77948636,100.36,100.29,30.79262665]
[1770006146456,139.5369,100.44,100.32,170.49162665]
[1770006146660,139.5369,100.44,100.3,139.7254]
[1770006146661,139.5609,100.42,100.3,30.79262665]
[1770006146854,141.28750166,100.43,100.33,30.79262665]
[1770006147055,398.5,100.43,100.35,170.45039123]
[1770006147259,31.02327422,100.5,100.39,30.79279123]
[1770006147460,789.07739692,100.51,100.4,139.5871]
[1770006147659,928.51439692,100.51,100.4,30.79279123]
[1770006147858,139.4518,100.5,100.4,30.79279123]
[1770006148061,928.51439692,100.51,100.4,30.79279123]
[1770006148356,398.44,100.51,100.44,139.5312]
[1770006148562,8.33845908,100.58,100.47,30.79279123]
[1770006148857,8.33845908,100.58,100.51,30.79279123]
[1770006149252,139.358,100.57,100.47,30.87761661]
[1770006149461,139.3828,100.55,100.47,30.87761661]
[1770006149950,139.4082,100.53,100.42,30.87761661]
[1770006150151,8.33845908,100.58,100.48,30.87761661]
[1770006150352,139.3603,100.57,100.48,30.87761661]
[1770006150563,147.67745908,100.58,100.48,30.87761661]
[1770006150753,8.33845908,100.58,100.48,30.87761661]
[1770006150958,139.3807,100.55,100.48,30.87761661]
[1770006151157,139.3669,100.56,100.48,30.87761661]
[1770006151361,139.3831,100.55,100.45,30.68867261]
[1770006151565,147.67885908,100.58,100.47,30.68867261]
[1770006151760,139.3537,100.57,100.47,30.68867261]
[1770006151965,139.3685,100.56,100.47,30.68867261]
[1770006152156,139.3809,100.55,100.47,30.68867261]
[1770006152358,139.3837,100.55,100.42,30.68867261]
[1770006152559,139.3685,100.56,100.44,30.68867261]
[1770006152757,139.3667,100.56,100.45,30.68867261]
[1770006153765,8.33845908,100.58,100.51,30.64803494]
[1770006154062,381.04,100.65,100.54,26.4788054]
[1770006154364,381.04,100.65,100.55,26.4788054]
[1770006154559,139.2999,100.61,100.5,26.4788054]
[1770006154756,139.2995,100.61,100.5,26.4788054]
[1770006155264,139.2392,100.66,100.54,26.52772148]
[1770006155565,139.2423,100.65,100.54,26.52772148]
[1770006156357,139.2281,100.66,100.55,26.52772148]
[1770006156560,397.76,100.67,100.56,26.52772148]
[1770006156962,139.2424,100.65,100.57,26.52772148]
[1770006157357,139.2782,100.63,100.57,26.52772148]
[1770006157561,139.2782,100.63,100.51,26.56618688]
[1770006157756,170.26567422,100.65,100.51,26.56618688]
[1770006157757,139.3249,100.59,100.51,26.56618688]
[1770006158065,397.58,100.6,100.51,26.56618688]
[1770006158267,139.2705,100.63,100.52,26.56568035]
[1770006158466,545.7035,100.65,100.53,26.56568035]
[1770006158762,139.2569,100.64,100.55,26.56568035]
[1770006159455,139.2708,100.63,100.55,26.56568035]
[1770006159867,139.2569,100.64,100.55,26.56568035]
[1770006160360,139.2698,100.63,100.55,26.56568035]
[1770006160566,139.2698,100.63,100.52,26.55258178]
[1770006160567,139.2845,100.62,100.52,26.55258178]
[1770006161066,139.3015,100.61,100.49,26.61662079]
[1770006161263,139.2818,100.63,100.52,26.61662079]
[1770006161464,139.2008,100.68,100.57,26.61662079]
[1770006161667,139.2008,100.68,100.54,139.394]
[1770006161668,139.2499,100.65,100.54,26.61662079]
[1770006161870,139.2564,100.64,100.54,26.61662079]
[1770006162064,139.2703,100.63,100.54,26.61662079]
[1770006162367,139.3152,100.6,100.48,26.61662079]
[1770006162562,139.3391,100.58,100.48,26.61662079]
[1770006162964,139.3618,100.57,100.48,26.61662079]
[1770006163865,139.3674,100.56,100.48,26.61662079]
[1770006164558,139.3251,100.59,100.48,26.61662079]
[1770006164758,8.956,100.6,100.49,26.64176271]
[1770006164960,139.2991,100.61,100.5,26.64176271]
[1770006165265,139.3275,100.59,100.5,26.64176271]
[1770006165468,536.5956,100.62,100.5,26.64176271]
[1770006165668,536.5956,100.62,100.51,26.65534094]
[1770006165860,397.3,100.62,100.51,26.65534094]
[1770006166066,397.3,100.62,100.51,166.08914094]
[1770006166267,397.3,100.62,100.54,166.04914094]
[1770006166465,397.3,100.62,100.55,26.65534094]
[1770006166861,139.2987,100.61,100.51,26.65549492]
[1770006167173,139.3173,100.6,100.51,26.65549492]
[1770006167470,139.277,100.63,100.52,26.68568421]
[1770006167669,536.4312,100.63,100.53,26.68568421]
[1770006167871,8.9539,100.62,100.53,26.68568421]
[1770006168173,139.2977,100.61,100.53,26.68568421]
[1770006168665,139.3112,100.6,100.49,26.68568421]
[1770006169371,545.3869,100.6,100.49,26.68568421]
[1770006169571,139.3397,100.58,100.49,26.68568421]
[1770006169770,148.2894,100.59,100.49,26.68568421]
[1770006170368,139.3324,100.59,100.49,26.68568421]
[1770006170570,567.45447422,100.6,100.49,26.68568421]
[1770006171066,148.2827,100.59,100.49,26.68568421]
[1770006171371,139.3421,100.58,100.49,26.68568421]
[1770006171572,148.2997,100.58,100.49,26.68568421]
[1770006171869,139.3261,100.59,100.49,26.68568421]
[1770006172267,139.34,100.58,100.49,26.68568421]
[1770006172565,536.4312,100.6,100.49,26.68568421]
[1770006173071,139.3395,100.58,100.49,26.68568421]
[1770006173261,536.4312,100.6,100.49,26.68568421]
[1770006173668,545.3873,100.6,100.49,26.68568421]
[1770006174472,148.2817,100.59,100.49,26.68568421]
[1770006174873,8.9567,100.59,100.49,26.68568421]
[1770006175073,148.2977,100.58,100.49,26.68568421]
[1770006175274,8.9578,100.58,100.49,26.68568421]
[1770006176074,8.9567,100.59,100.49,26.68568421]
[1770006176576,397.12,100.6,100.49,26.68568421]
[1770006176780,536.4326,100.6,100.5,26.84913141]
[1770006176969,397.12,100.6,100.5,26.84913141]
[1770006178377,397.08,100.6,100.5,26.84913141]
[1770006179177,8.956,100.6,100.5,26.84913141]
[1770006179578,397.06,100.61,100.5,26.84913141]
[1770006179984,536.3606,100.61,100.5,26.84913141]
[1770006180178,139.3403,100.58,100.45,139.5185]
[1770006180478,170.33727422,100.6,100.48,26.85212006]
[1770006180680,139.2535,100.65,100.52,26.85212006]
[1770006180879,31.02327422,100.66,100.57,26.85212006]
[1770006181082,139.2462,100.65,100.53,26.91323142]
[1770006181285,139.2698,100.63,100.53,26.91323142]
[1770006181679,170.25397422,100.66,100.54,26.91323142]
[1770006182081,139.3041,100.61,100.5,26.91323142]
[1770006182283,536.3641,100.61,100.5,26.91323142]
[1770006182483,397.06,100.61,100.52,26.91323142]
[1770006182982,8.9576,100.58,100.52,26.91323142]
[1770006183185,8.9576,100.58,100.49,26.87200805]
[1770006183391,139.3261,100.59,100.49,26.87200805]
[1770006184186,148.2984,100.58,100.49,26.87200805]
[1770006184382,159.79789226,100.6,100.49,26.87200805]
[1770006184584,538.09435447,100.61,100.5,26.87200805]
[1770006184585,397.06,100.61,100.5,26.87200805]
[1770006184784,397.06,100.61,100.51,26.87200805]
[1770006184979,397.06,100.61,100.51,35.83540805]
[1770006185180,397.06,100.61,100.52,26.85026286]
[1770006186483,338.81509226,100.66,100.55,26.85026286]
[1770006186678,139.2289,100.66,100.55,26.85026286]
[1770006186882,139.256,100.64,100.56,26.85026286]
[1770006187083,139.2709,100.63,100.52,26.85026286]
[1770006187482,139.3077,100.61,100.52,26.85026286]
[1770006187681,139.3455,100.58,100.52,26.85026286]
[1770006187985,139.3551,100.57,100.46,26.84653221]
[1770006188178,8.9586,100.57,100.47,26.84653221]
[1770006188686,8.9586,100.57,100.46,148.4724]
[1770006188687,278.8017,100.54,100.44,26.84653221]
[1770006189086,139.3817,100.55,100.44,26.84653221]
[1770006189486,8.9607,100.55,100.45,26.84653221]
[1770006189887,139.3845,100.55,100.45,26.84653221]
[1770006190192,139.4219,100.52,100.42,26.80393683]
[1770006190388,139.3942,100.54,100.43,26.80393683]
[1770006190685,159.87069226,100.55,100.44,26.80393683]
[1770006191083,148.3573,100.54,100.44,26.80393683]
[1770006191282,8.9614,100.54,100.44,26.80393683]
[1770006191490,29.44589226,100.56,100.45,26.80393683]
[1770006191686,139.3821,100.55,100.45,26.80393683]
[1770006191887,159.85409226,100.56,100.45,26.80393683]
[1770006192087,8.9605,100.55,100.45,26.80393683]
[1770006192288,148.341,100.55,100.45,26.80393683]
[1770006192582,139.396,100.54,100.42,148.5308]
[1770006192887,139.396,100.54,100.43,26.82250028]
[1770006193088,397.04,100.55,100.44,26.82250028]
[1770006193301,536.414,100.56,100.44,26.82250028]
[1770006193489,139.3955,100.54,100.44,26.82250028]
[1770006193685,139.4115,100.53,100.44,26.82250028]
[1770006193891,139.3955,100.54,100.44,26.82250028]
[1770006194190,139.408,100.53,100.44,26.82250028]
[1770006194390,139.4367,100.51,100.44,26.82250028]
[1770006194584,139.408,100.53,100.39,147.84338201]
[1770006194585,139.408,100.53,100.42,26.8173208]
[1770006194892,147.65038201,100.53,100.42,26.8173208]
[1770006195191,8.24238201,100.51,100.42,26.8173208]
[1770006195686,536.4199,100.56,100.43,35.05970281]
[1770006195887,397.08,100.56,100.46,26.8173208]
[1770006196088,397.08,100.56,100.47,26.79910686]
[1770006196283,8.9571,100.59,100.48,26.79910686]
[1770006196488,17.19948201,100.59,100.49,26.79910686]
[1770006197191,139.344,100.58,100.49,26.79910686]
[1770006198387,147.57158201,100.59,100.49,26.79910686]
[1770006198593,544.64098201,100.61,100.49,26.79910686]
[1770006198985,397.1,100.61,100.51,26.79373858]
[1770006199188,139.3261,100.59,100.51,26.79373858]
[1770006199389,147.55498201,100.6,100.51,26.79373858]
[1770006199690,147.58478201,100.58,100.47,26.79373858]
[1770006199890,544.68478201,100.58,100.47,26.79373858]
[1770006200194,139.3531,100.57,100.47,26.79373858]
[1770006200486,139.3665,100.56,100.47,26.79373858]
[1770006200690,8.24238201,100.54,100.44,26.78965379]
[1770006200986,139.3822,100.55,100.44,26.78965379]
[1770006201194,544.66868201,100.58,100.46,26.78965379]
[1770006201390,8.24238201,100.58,100.47,166.28005379]
[1770006201587,8.24238201,100.58,100.48,26.78965379]
[1770006201791,8.24238201,100.58,100.49,26.78965379]
[1770006201986,318.3761,100.62,100.49,26.78965379]
[1770006201987,147.51348201,100.63,100.52,26.78965379]
[1770006202185,139.3122,100.6,100.49,26.73945469]
[1770006202386,545.3483,100.6,100.49,26.73945469]
[1770006202883,147.56788201,100.59,100.49,26.73945469]
[1770006203390,147.56788201,100.59,100.46,26.73945469]
[1770006203391,147.60158201,100.57,100.46,26.73945469]
[1770006203591,147.62478201,100.55,100.46,26.73945469]
[1770006204294,139.3671,100.56,100.42,26.74792833]
[1770006204295,147.67928201,100.51,100.42,26.74792833]
[1770006204687,147.72008201,100.48,100.39,26.74792833]
[1770006204893,156.68688201,100.48,100.39,26.74792833]
[1770006205090,139.5066,100.46,100.39,26.74792833]
[1770006205292,139.4931,100.47,100.39,26.74792833]
[1770006205493,147.72008201,100.48,100.39,26.74792833]
[1770006205685,148.4596,100.47,100.39,26.74792833]
[1770006205989,139.4777,100.48,100.37,26.75219927]
[1770006206189,139.4925,100.47,100.37,26.75219927]
[1770006206398,139.5346,100.44,100.34,26.75219927]
[1770006206889,139.5482,100.43,100.34,26.75219927]
[1770006207200,139.5485,100.43,100.34,26.75219927]
[1770006207395,8.9711,100.43,100.34,26.75219927]
[1770006208196,8.24238201,100.46,100.35,166.39306279]
[1770006208389,8.24238201,100.46,100.34,139.6627]
[1770006208390,139.507,100.46,100.36,26.73536279]
[1770006208696,156.73158201,100.45,100.36,26.73536279]
[1770006209390,148.5064,100.44,100.36,26.73536279]
[1770006209993,8.24238201,100.45,100.36,26.73536279]
[1770006210195,147.76408201,100.45,100.36,26.73536279]
[1770006210394,139.5341,100.44,100.36,26.73536279]
[1770006210593,8.9703,100.44,100.36,26.73536279]
[1770006211189,8.9686,100.46,100.36,26.73536279]
[1770006211394,147.73428201,100.47,100.36,26.73536279]
[1770006211593,147.76758201,100.45,100.36,26.73536279]
[1770006211792,139.5339,100.44,100.36,26.73536279]
[1770006211990,147.76758201,100.45,100.36,26.73536279]
[1770006212195,147.73428201,100.47,100.36,26.73536279]
[1770006212497,405.54238201,100.47,100.36,26.73536279]
[1770006212793,8.24238201,100.47,100.38,26.50076269]
[1770006212999,8.24238201,100.51,100.4,26.50076269]
[1770006213197,318.18238201,100.51,100.4,166.08916269]
[1770006213394,8.24238201,100.49,100.4,26.50076269]
[1770006213796,405.56238201,100.51,100.4,166.08916269]
[1770006213990,544.99908201,100.51,100.4,26.50076269]
[1770006214899,553.96318201,100.51,100.4,26.50076269]
[1770006215196,8.24238201,100.47,100.37,26.44232833]
[1770006215998,8.24238201,100.49,100.38,26.431964]
[1770006216301,8.24238201,100.49,100.39,26.431964]
[1770006216501,139.4642,100.49,100.39,26.431964]
[1770006217199,139.4777,100.48,100.39,26.431964]
[1770006217402,139.4322,100.52,100.4,26.431964]
[1770006217703,397.36,100.51,100.4,26.431964]
[1770006218295,406.3241,100.51,100.4,26.431964]
[1770006218497,139.4528,100.5,100.4,26.431964]
[1770006218698,536.7991,100.51,100.4,26.431964]
[1770006218894,139.4322,100.52,100.4,26.431964]
[1770006219095,536.7959,100.51,100.4,26.431964]
[1770006219297,139.4322,100.52,100.4,26.431964]
[1770006219602,545.7599,100.51,100.4,35.405164]
[1770006219898,406.324,100.51,100.41,26.44505598]
[1770006220097,139.3927,100.55,100.41,26.44505598]
[1770006220098,139.3927,100.55,100.43,26.44589531]
[1770006220299,159.89757185,100.56,100.44,26.44589531]
[1770006220507,557.25757185,100.56,100.44,26.44589531]
[1770006221303,139.4088,100.53,100.41,26.44589531]
[1770006221802,139.4265,100.52,100.41,26.44589531]
[1770006222000,139.3806,100.55,100.44,26.4620422]
[1770006222305,536.7406,100.55,100.44,26.4620422]
[1770006222496,139.4236,100.52,100.41,26.4620422]
[1770006222698,139.3945,100.54,100.43,26.4620422]
[1770006222891,417.85817185,100.56,100.45,26.4620422]
[1770006223095,8.9607,100.55,100.45,26.4620422]
[1770006223497,148.3422,100.55,100.45,26.4620422]
[1770006223802,139.4108,100.53,100.42,35.4332422]
[1770006223998,139.3815,100.55,100.42,35.4332422]
[1770006223999,139.3815,100.55,100.43,26.4620422]
[1770006224200,536.7376,100.54,100.43,26.4620422]
[1770006224397,8.9622,100.53,100.43,26.4620422]
[1770006224892,139.4235,100.52,100.43,26.4620422]
[1770006225093,397.34,100.54,100.44,26.46497765]
[1770006225293,20.51817185,100.56,100.44,26.46497765]
[1770006225294,159.88537185,100.56,100.45,26.46497765]
[1770006225704,8.9603,100.55,100.45,26.46497765]
[1770006226303,139.4081,100.53,100.45,26.46497765]
[1770006226500,139.4278,100.52,100.42,26.44930104]
[1770006226894,8.964,100.51,100.42,26.44930104]
[1770006227096,139.4533,100.5,100.42,26.44930104]
[1770006227299,139.4278,100.52,100.42,26.44930104]
[1770006227499,536.6925,100.55,100.43,26.44929412]
[1770006227704,8.9621,100.53,100.43,35.41989412]
[1770006227903,8.9621,100.53,100.43,26.44929412]
[1770006228598,8.9631,100.52,100.43,26.44929412]
[1770006228999,139.3942,100.54,100.43,26.44929412]
[1770006229200,139.414,100.53,100.43,26.44929412]
[1770006229400,139.4278,100.52,100.43,26.44929412]
[1770006229901,8.9641,100.51,100.43,26.44929412]
[1770006231203,545.6566,100.53,100.43,26.44929412]
[1770006231406,148.3766,100.53,100.43,26.44929412]
[1770006231598,139.4504,100.5,100.4,26.47140648]
[1770006231906,139.414,100.53,100.42,26.47140648]
[1770006233300,8.9634,100.52,100.42,8.9715]
[1770006233505,8.9634,100.52,100.43,26.46881028]
[1770006233710,20.51817185,100.54,100.43,26.46881028]
[1770006233908,139.3929,100.55,100.44,26.46881028]
[1770006234106,139.3783,100.56,100.45,26.45546341]
[1770006234305,536.6583,100.56,100.45,26.45546341]
[1770006234812,8.9608,100.55,100.45,35.42426341]
[1770006235006,139.3805,100.55,100.45,26.45546341]
[1770006236003,8.9624,100.53,100.45,26.45546341]
[1770006236208,139.4081,100.53,100.45,26.45546341]
[1770006236412,8.9656,100.49,100.39,26.45598632]
[1770006236710,147.68383566,100.51,100.4,26.45598632]
[1770006236907,8.24413566,100.51,100.4,26.45598632]
[1770006237411,139.4497,100.5,100.41,26.45598632]
[1770006237910,536.7097,100.5,100.41,26.45598632]
[1770006238212,8.9666,100.48,100.41,26.45598632]
[1770006239012,8.9666,100.48,100.38,26.42945643]
[1770006239013,8.9676,100.47,100.38,26.42945643]
[1770006239409,8.9684,100.46,100.38,26.42945643]
[1770006239707,139.5348,100.44,100.35,26.42945643]
[1770006239904,147.76543566,100.45,100.35,26.42945643]
[1770006239905,139.5213,100.45,100.35,26.42945643]
[1770006240307,139.5762,100.41,100.32,26.41215429]
[1770006240511,8.24413566,100.41,100.32,26.41215429]
[1770006240814,147.72353566,100.48,100.37,26.41215429]
[1770006241008,139.4794,100.48,100.37,26.41215429]
[1770006241209,8.9676,100.47,100.38,26.41215429]
[1770006241410,147.73673566,100.47,100.38,26.41215429]
[1770006241611,405.52413566,100.49,100.39,26.41215429]
[1770006241810,397.28,100.49,100.39,35.38625429]
[1770006242007,397.28,100.49,100.4,26.41215429]
[1770006242318,8.24413566,100.53,100.43,165.95507514]
[1770006242513,405.56413566,100.55,100.44,165.93967514]
[1770006242817,147.65233566,100.53,100.45,26.40827514]
[1770006243206,8.9631,100.52,100.42,26.40827514]
[1770006243717,8.24413566,100.53,100.43,26.40827514]
[1770006243918,405.56413566,100.55,100.45,26.40827514]
[1770006244112,397.32,100.55,100.46,26.52848004]
[1770006244616,179.22,100.56,100.46,26.52848004]
[1770006244818,8.24413566,100.6,100.51,26.52848004]
[1770006245020,544.87893566,100.62,100.51,26.52848004]
[1770006245216,8.24413566,100.62,100.52,26.52848004]
[1770006245413,179.24,100.65,100.55,165.90708004]
[1770006245608,405.56413566,100.66,100.55,26.52848004]
[1770006245815,397.32,100.66,100.58,165.86478004]
[1770006246117,293.0388269,100.72,100.62,165.82939456]
[1770006246318,293.0388269,100.72,100.63,165.81639456]
[1770006246514,293.0388269,100.72,100.6,165.85899456]
[1770006246515,301.24533946,100.72,100.6,165.85899456]
[1770006246711,698.54533946,100.72,100.6,165.85759456]
[1770006246915,8.20651256,100.7,100.6,26.54969456]
[1770006247109,294.76771877,100.72,100.62,26.54969456]
[1770006247313,139.1031,100.76,100.62,26.54969456]
[1770006247314,8.20651256,100.75,100.65,26.54969456]
[1770006248014,405.44651256,100.75,100.65,26.54969456]
[1770006248222,397.24,100.75,100.65,165.79099456]
[1770006248415,8.20651256,100.78,100.68,139.1993]
[1770006248617,8.33845908,100.8,100.71,165.71910027]
[1770006248824,8.33845908,100.8,100.71,26.57280027]
[1770006249121,8.33845908,100.8,100.71,165.73140027]
[1770006249312,147.11931256,100.89,100.78,22.40357073]
[1770006249513,138.8835,100.91,100.8,22.40357073]
[1770006249722,138.8714,100.92,100.82,22.40357073]
[1770006249918,147.06271256,100.93,100.82,22.40357073]
[1770006250122,138.8835,100.91,100.82,22.40357073]
[1770006250417,138.9251,100.88,100.78,22.13165376]
[1770006250718,139.0076,100.82,100.74,22.13165376]
[1770006250918,138.9649,100.86,100.74,22.13165376]
[1770006251121,138.8939,100.91,100.79,22.13165376]
[1770006251315,138.8806,100.92,100.8,22.13165376]
[1770006251516,138.8983,100.9,100.8,22.13165376]
[1770006251712,138.8994,100.9,100.8,22.13165376]
[1770006251915,138.9301,100.88,100.76,22.13165376]
[1770006252120,138.9112,100.89,100.77,22.03679157]
[1770006252514,138.9528,100.86,100.74,22.03679157]
[1770006252722,535.7528,100.86,100.74,22.03679157]
[1770006252919,396.8,100.86,100.75,22.03679157]
[1770006253115,30.52256909,100.87,100.76,22.03679157]
[1770006253315,169.41826909,100.91,100.78,22.03679157]
[1770006253514,138.8834,100.91,100.79,22.03679157]
[1770006253721,138.8922,100.91,100.8,22.03679157]
[1770006253918,138.9132,100.89,100.8,22.03679157]
[1770006254124,396.74,100.9,100.8,22.03679157]
[1770006254323,138.8922,100.91,100.8,22.03679157]
[1770006254324,138.8832,100.91,100.8,22.03679157]
[1770006254624,138.8876,100.91,100.8,22.03679157]
[1770006254924,138.9961,100.83,100.73,22.05123981]
[1770006255117,138.8777,100.92,100.79,22.05123981]
[1770006255318,138.8872,100.91,100.78,22.05123981]
[1770006255514,138.9153,100.89,100.78,22.05123981]
[1770006255721,138.9525,100.86,100.78,22.05123981]
[1770006256016,138.9669,100.85,100.75,22.04581194]
[1770006256223,138.9574,100.86,100.75,22.04581194]
[1770006256224,138.954,100.86,100.75,22.04581194]
[1770006256419,138.98,100.84,100.75,22.04581194]
[1770006256724,139.0215,100.81,100.71,22.04581194]
[1770006256923,396.48,100.82,100.72,22.04581194]
[1770006257528,396.48,100.82,100.73,22.04581194]
[1770006258324,396.48,100.82,100.7,139.172]
[1770006258325,139.0215,100.81,100.7,22.25472296]
[1770006258523,138.9658,100.85,100.72,161.39922296]
[1770006258929,138.9947,100.83,100.72,22.25472296]
[1770006259122,139.0221,100.81,100.72,22.25472296]
[1770006259322,139.0211,100.81,100.72,22.25472296]
[1770006259518,139.0099,100.82,100.7,161.42632296]
[1770006259726,139.0099,100.82,100.7,22.25472296]
[1770006259932,139.0387,100.8,100.7,22.25472296]
[1770006260227,139.0096,100.82,100.7,22.28884249]
[1770006260528,139.0073,100.82,100.72,22.28884249]
[1770006260727,138.9949,100.83,100.72,22.28884249]
[1770006261121,139.022,100.81,100.72,22.28884249]
[1770006261321,139.0351,100.8,100.72,22.28884249]
[1770006261727,139.0351,100.8,100.69,22.28884249]
[1770006261930,139.0766,100.77,100.66,22.29957711]
[1770006262428,139.1037,100.75,100.66,22.29957711]
[1770006262619,139.0915,100.76,100.66,22.29957711]
[1770006262819,139.104,100.75,100.66,22.29957711]
[1770006263026,139.1195,100.74,100.66,22.29957711]
[1770006263230,139.1332,100.73,100.62,22.29957711]
[1770006263425,139.1495,100.72,100.62,22.29957711]
[1770006263627,139.1597,100.71,100.62,22.29957711]
[1770006263825,139.1732,100.7,100.58,22.29957711]
[1770006264028,169.69576909,100.7,100.58,22.29957711]
[1770006264930,169.65746909,100.73,100.61,22.26775968]
[1770006265233,139.1258,100.74,100.61,22.26775968]
[1770006265234,139.1039,100.75,100.63,161.53645968]
[1770006265427,565.96296909,100.76,100.63,161.53595968]
[1770006265628,426.86256909,100.76,100.64,161.52235968]
[1770006265832,30.52256909,100.76,100.64,161.52235968]
[1770006266133,535.4162,100.77,100.66,22.37158026]
[1770006266433,139.0559,100.79,100.68,22.37158026]
[1770006266630,139.0665,100.78,100.68,22.37158026]
[1770006267026,396.36,100.78,100.68,22.37158026]
[1770006267434,139.0788,100.77,100.65,22.37158026]
[1770006267631,396.36,100.78,100.68,161.57118026]
[1770006267830,396.36,100.78,100.69,22.37158026]
[1770006268027,535.4232,100.78,100.69,22.37158026]
[1770006268229,139.0774,100.77,100.65,22.58031495]
[1770006268929,139.09,100.76,100.65,22.58031495]
[1770006269126,139.1049,100.75,100.65,22.58031495]
[1770006269526,535.4649,100.75,100.65,22.58031495]
[1770006269829,139.05,100.79,100.68,22.58031495]
[1770006270429,544.3387,100.8,100.68,22.58031495]
[1770006270734,535.4007,100.8,100.68,22.58031495]
[1770006270928,526.98734124,100.82,100.7,22.59271774]
[1770006271130,784.33944124,100.82,100.7,161.76371774]
[1770006271331,923.34774124,100.82,100.7,22.59271774]
[1770006271728,139.0237,100.81,100.7,22.59271774]
[1770006272028,139.035,100.8,100.7,22.59271774]
[1770006272228,30.52256909,100.81,100.7,22.59271774]
[1770006272429,426.86256909,100.81,100.7,22.59271774]
[1770006272629,565.88856909,100.81,100.7,22.59271774]
[1770006273233,574.82596909,100.81,100.7,22.59271774]
[1770006273434,139.0401,100.8,100.7,22.59271774]
[1770006273732,565.88856909,100.81,100.7,22.59271774]
[1770006273935,139.0352,100.8,100.7,22.59271774]
[1770006274133,396.34,100.81,100.72,22.36203896]
[1770006275435,535.3631,100.81,100.72,22.36203896]
[1770006275836,139.0351,100.8,100.69,22.36203896]
[1770006276031,535.3631,100.81,100.7,22.35683123]
[1770006276032,396.34,100.81,100.7,22.35683123]
[1770006276535,169.61356909,100.76,100.65,22.35683123]
[1770006276728,30.52256909,100.76,100.65,22.35683123]
[1770006277235,169.61836909,100.76,100.65,22.35683123]
[1770006277529,396.28,100.77,100.66,170.53163123]
[1770006277929,396.28,100.77,100.67,22.31540449]
[1770006278128,178.52086909,100.79,100.68,22.31540449]
[1770006278434,178.51056909,100.79,100.68,22.31540449]
[1770006278635,169.57106909,100.79,100.68,22.31540449]
[1770006278836,396.28,100.78,100.69,22.31540449]
[1770006279137,396.28,100.78,100.69,161.50120449]
[1770006279432,178.46656909,100.82,100.7,170.43400449]
[1770006279634,396.3,100.81,100.7,22.31540449]
[1770006279839,535.3225,100.81,100.7,22.31540449]
[1770006280237,544.2595,100.81,100.7,22.31540449]
[1770006280632,147.9733,100.8,100.7,22.31540449]
[1770006281039,544.2733,100.8,100.7,22.31540449]
[1770006281538,178.46666909,100.82,100.7,22.31540449]
[1770006281932,396.28,100.81,100.7,22.31540449]
[1770006283130,178.46666909,100.82,100.7,22.31540449]
[1770006283131,39.45916909,100.82,100.71,22.31562391]
[1770006283331,147.9584,100.81,100.71,22.31562391]
[1770006283743,8.9373,100.81,100.71,22.31562391]
[1770006284139,169.53066909,100.82,100.71,22.31562391]
[1770006284340,138.9842,100.84,100.73,22.30906356]
[1770006284540,396.26,100.84,100.73,22.30906356]
[1770006285040,535.2405,100.84,100.73,22.30906356]
[1770006285342,405.1948,100.84,100.73,22.30906356]
[1770006285743,147.9337,100.83,100.73,22.30906356]
[1770006286038,544.1937,100.83,100.73,22.30906356]
[1770006286234,139.0212,100.81,100.73,22.30906356]
[1770006286438,147.9733,100.8,100.7,22.30919835]
[1770006286634,138.9788,100.85,100.74,22.30919835]
[1770006286846,535.2188,100.85,100.74,22.30919835]
[1770006287235,147.9145,100.84,100.74,22.30919835]
[1770006287440,138.9797,100.84,100.74,22.30919835]
[1770006287643,138.9945,100.83,100.72,22.309152]
[1770006288141,147.9301,100.83,100.72,22.309152]
[1770006288439,138.9945,100.83,100.69,22.30921807]
[1770006288646,8.9392,100.79,100.69,22.30921807]
[1770006288844,169.54946909,100.81,100.69,22.30921807]
[1770006289141,8.9384,100.8,100.69,22.30921807]
[1770006289747,147.9882,100.79,100.69,22.30921807]